bitfinex/quotes_BTCUSD_20250328
["timestamp","ask_amount","ask_price","bid_price","bid_amount"]
[1743120363077,0.38736001,87195.0,87194.0,0.50806824]
[1743120363299,0.08736001,87195.0,87194.0,0.50806824]
[1743120363502,0.08736001,87195.0,87194.0,0.26722724]
[1743120363928,0.31673001,87195.0,87194.0,0.26722724]
[1743120364129,0.08736001,87195.0,87194.0,0.26722724]
[1743120364306,0.05311877,87195.0,87194.0,0.49660024]
[1743120365793,0.28248877,87195.0,87194.0,0.26722724]
[1743120366381,0.29395677,87195.0,87194.0,0.26722724]
[1743120368425,0.29395677,87195.0,87194.0,0.0201696]
[1743120370930,0.3282781,87195.0,87194.0,0.0201696]
[1743120379611,0.29395677,87195.0,87194.0,0.0201696]
[1743120385606,0.05311877,87195.0,87194.0,0.0201696]
[1743120385864,0.05311877,87195.0,87194.0,0.36380024]
[1743120386070,0.05311877,87195.0,87194.0,0.45576824]
[1743120386647,0.05311877,87195.0,87194.0,0.44430024]
[1743120387811,0.05311877,87195.0,87194.0,0.21492724]
[1743120388388,0.29395677,87195.0,87194.0,0.21492724]
[1743120389769,0.28248877,87195.0,87194.0,0.21492724]
[1743120390983,0.26106187,87195.0,87194.0,0.21492724]
[1743120391559,0.03169187,87195.0,87194.0,0.44430024]
[1743120392132,0.03169187,87195.0,87194.0,0.21492724]
[1743120392521,0.26106187,87195.0,87194.0,0.21492724]
[1743120393461,0.03169187,87195.0,87194.0,0.21492724]
[1743120393972,0.03169187,87195.0,87194.0,0.44430024]
[1743120395134,0.03169187,87195.0,87194.0,0.45576824]
[1743120398657,0.003,87195.0,87194.0,0.50196824]
[1743120399258,0.002,87195.0,87194.0,0.50196824]
[1743120399908,0.529345,87205.0,87202.0,0.22935]
[1743120400110,0.529345,87205.0,87203.0,0.11425764]
[1743120400311,0.3,87205.0,87203.0,0.34360664]
[1743120400521,0.529344,87205.0,87203.0,0.34360664]
[1743120400715,0.529344,87205.0,87203.0,0.11425764]
[1743120400920,0.529345,87205.0,87203.0,0.11425764]
[1743120401752,0.540814,87204.0,87203.0,0.11425764]
[1743120403933,0.240814,87204.0,87203.0,0.11425764]
[1743120404340,0.241814,87204.0,87203.0,0.11425764]
[1743120406001,0.001,87204.0,87203.0,0.11425764]
[1743120406347,0.001,87204.0,87203.0,0.34360664]
[1743120406548,0.001,87204.0,87203.0,0.32360664]
[1743120407392,0.001,87204.0,87203.0,0.09425764]
[1743120407616,0.230347,87204.0,87203.0,0.09425764]
[1743120409098,0.241814,87204.0,87203.0,0.09425764]
[1743120409857,0.25841805,87204.0,87203.0,0.09425764]
[1743120410401,0.011468,87199.0,87195.0,0.22937]
[1743120410628,0.240833,87199.0,87196.0,0.34362564]
[1743120410832,0.01661041,87198.0,87196.0,0.34362564]
[1743120411025,0.24597341,87198.0,87196.0,0.34362564]
[1743120411226,0.01661041,87198.0,87196.0,0.34362564]
[1743120413113,0.24597341,87198.0,87196.0,0.34362564]
[1743120413620,0.25744141,87198.0,87196.0,0.11425764]
[1743120413982,0.229365,87197.0,87196.0,0.11425764]
[1743120414404,0.25743598,87197.0,87196.0,0.11425764]
[1743120414762,0.240838,87195.0,87194.0,0.0201696]
[1743120414968,0.229368,87196.0,87194.0,0.13442724]
[1743120415171,0.01659979,87195.0,87194.0,0.13442724]
[1743120415370,0.24596979,87195.0,87194.0,0.13442724]
[1743120416484,0.24596979,87195.0,87194.0,0.0201696]
[1743120416654,0.01659979,87195.0,87194.0,0.0201696]
[1743120417060,0.24596979,87195.0,87194.0,0.0201696]
[1743120417491,0.25743779,87195.0,87194.0,0.0201696]
[1743120419149,0.38593779,87195.0,87194.0,0.0201696]
[1743120421198,0.38693779,87195.0,87194.0,0.0201696]
[1743120421603,0.68693779,87195.0,87194.0,0.0201696]
[1743120422207,1.10563779,87195.0,87194.0,0.0201696]
[1743120422435,1.12707284,87195.0,87194.0,0.0201696]
[1743120422978,1.12507284,87195.0,87194.0,0.0201696]
[1743120423268,1.12507284,87195.0,87191.0,6e-07]
[1743120423269,0.540846,87192.0,87191.0,6e-07]
[1743120423400,0.7948952,87192.0,87191.0,6e-07]
[1743120423957,0.8291774,87192.0,87191.0,6e-07]
[1743120424374,0.7948952,87192.0,87191.0,6e-07]
[1743120424784,0.7978952,87192.0,87191.0,6e-07]
[1743120424985,0.83416035,87192.0,87191.0,6e-07]
[1743120425136,0.8555954,87192.0,87191.0,6e-07]
[1743120425344,1.31139301,87192.0,87191.0,6e-07]
[1743120425887,1.32393386,87192.0,87191.0,6e-07]
[1743120426123,1.32593386,87192.0,87191.0,6e-07]
[1743120426309,1.33093386,87192.0,87191.0,6e-07]
[1743120426547,1.29666871,87192.0,87191.0,6e-07]
[1743120426894,1.2585711,87192.0,87191.0,6e-07]
[1743120427304,1.36782874,87192.0,87191.0,6e-07]
[1743120427500,1.36282874,87192.0,87191.0,6e-07]
[1743120427683,1.36782874,87192.0,87191.0,6e-07]
[1743120428067,1.37282874,87192.0,87191.0,6e-07]
[1743120429184,1.24403025,87192.0,87191.0,6e-07]
[1743120429384,1.25865261,87192.0,87191.0,6e-07]
[1743120429653,1.05177261,87192.0,87191.0,6e-07]
[1743120429770,1.18069261,87192.0,87191.0,6e-07]
[1743120430850,1.25829261,87192.0,87191.0,6e-07]
[1743120432100,1.12937261,87192.0,87191.0,6e-07]
[1743120432301,1.00647261,87192.0,87191.0,6e-07]
[1743120432524,1.11399756,87192.0,87191.0,6e-07]
[1743120432962,0.98503756,87192.0,87191.0,6e-07]
[1743120433164,0.98003756,87192.0,87191.0,6e-07]
[1743120433517,0.98403756,87192.0,87191.0,6e-07]
[1743120434649,0.43819156,87192.0,87191.0,0.2293816]
[1743120434848,0.43819156,87192.0,87191.0,0.3063816]
[1743120435048,0.007,87192.0,87191.0,0.42063924]
[1743120435249,0.007,87192.0,87191.0,0.43210824]
[1743120435455,0.007,87192.0,87191.0,0.42063924]
[1743120435659,0.01949872,87192.0,87191.0,0.42063924]
[1743120435921,0.004,87192.0,87191.0,0.42063924]
[1743120436071,0.005,87192.0,87191.0,0.19125824]
[1743120436304,0.02151252,87192.0,87191.0,0.42063924]
[1743120436484,0.01751252,87192.0,87191.0,0.42063924]
[1743120436683,0.01851252,87192.0,87191.0,0.43210824]
[1743120437202,0.01751252,87192.0,87191.0,0.43210824]
[1743120437404,0.01651252,87192.0,87191.0,0.42063924]
[1743120437843,0.229373,87194.0,87191.0,0.19125824]
[1743120438046,0.229376,87193.0,87192.0,0.11425764]
[1743120438251,0.24589506,87193.0,87192.0,0.11425764]
[1743120439419,0.24689506,87193.0,87192.0,0.11425764]
[1743120439619,0.25836306,87193.0,87192.0,0.11425764]
[1743120441131,0.01751906,87193.0,87192.0,0.11425764]
[1743120441338,0.01751906,87193.0,87192.0,0.34363564]
[1743120442241,0.01751906,87193.0,87192.0,0.35510364]
[1743120442477,0.01751906,87193.0,87192.0,0.34363564]
[1743120443257,0.01651906,87193.0,87192.0,0.35510364]
[1743120443587,0.52936,87199.0,87196.0,0.229366]
[1743120443810,0.3,87199.0,87197.0,0.229364]
[1743120444024,0.3,87199.0,87196.0,0.229366]
[1743120444240,0.3,87200.0,87197.0,0.229365]
[1743120444906,0.001,87199.0,87197.0,0.229365]
[1743120445116,0.3,87200.0,87197.0,0.229365]
[1743120445524,0.529358,87200.0,87197.0,0.229365]
[1743120445734,0.301,87200.0,87198.0,0.34361964]
[1743120445956,0.302,87200.0,87198.0,0.34361964]
[1743120446156,0.531358,87200.0,87198.0,0.11425764]
[1743120446594,0.002,87200.0,87199.0,0.22936]
[1743120446810,0.002,87200.0,87199.0,0.48208564]
[1743120446998,0.001,87200.0,87199.0,0.48208564]
[1743120447209,0.0003388,87203.0,87202.0,0.240819]
[1743120447414,0.0003388,87203.0,87202.0,0.35507664]
[1743120449521,0.0003388,87203.0,87202.0,0.34360964]
[1743120449737,0.01691127,87203.0,87202.0,0.11425764]
[1743120450099,0.24626027,87203.0,87202.0,0.11425764]
[1743120452581,0.01691127,87203.0,87202.0,0.11425764]
[1743120452953,0.24626027,87203.0,87202.0,0.11425764]
[1743120454647,0.01691127,87203.0,87202.0,0.34360964]
[1743120454844,0.24626027,87203.0,87202.0,0.11425764]
[1743120455488,0.01691127,87203.0,87202.0,0.11425764]
[1743120455698,0.01691127,87203.0,87202.0,0.34360964]
[1743120456162,0.01691127,87203.0,87202.0,0.11425764]
[1743120456328,0.01691127,87203.0,87202.0,0.34360964]
[1743120457912,0.01691127,87203.0,87202.0,0.35507664]
[1743120458255,0.0003388,87203.0,87202.0,0.35507664]
[1743120462758,0.0003388,87203.0,87202.0,0.34360964]
[1743120462935,0.01695842,87203.0,87202.0,0.34360964]
[1743120464377,0.0003388,87203.0,87202.0,0.34360964]
[1743120464578,0.01695842,87203.0,87202.0,0.34360964]
[1743120464753,0.0003388,87203.0,87202.0,0.34360964]
[1743120465472,0.01695842,87203.0,87202.0,0.34360964]
[1743120471121,0.0003388,87203.0,87202.0,0.34360964]
[1743120472153,0.0003388,87203.0,87202.0,0.35507664]
[1743120472323,0.01696295,87203.0,87202.0,0.35507664]
[1743120472938,0.0003388,87203.0,87202.0,0.35507664]
[1743120476026,0.0003388,87203.0,87202.0,0.34360964]
[1743120476425,0.01696295,87203.0,87202.0,0.34360964]
[1743120476635,0.0003388,87203.0,87202.0,0.35507664]
[1743120481628,0.0043388,87203.0,87202.0,0.35507664]
[1743120483472,0.0043388,87203.0,87202.0,0.34360964]
[1743120484333,0.0043388,87203.0,87202.0,0.35507664]
[1743120492939,0.0043388,87203.0,87202.0,0.11425764]
[1743120493311,0.2336878,87203.0,87202.0,0.11425764]
[1743120493658,0.25031833,87203.0,87202.0,0.11425764]
[1743120494318,0.25031833,87203.0,87199.0,0.22936]
[1743120494516,0.02096933,87203.0,87201.0,0.229354]
[1743120494753,0.02096933,87203.0,87202.0,0.229352]
[1743120501223,0.02096933,87203.0,87202.0,0.240819]
[1743120501418,0.0043388,87203.0,87202.0,0.229352]
[1743120501624,0.02096631,87203.0,87202.0,0.229352]
[1743120501818,0.0043388,87203.0,87202.0,0.229352]
[1743120502059,0.02096631,87203.0,87202.0,0.229352]
[1743120502269,0.0043388,87203.0,87202.0,0.229352]
[1743120502471,0.02096631,87203.0,87202.0,0.229352]
[1743120502669,0.0043388,87203.0,87202.0,0.229352]
[1743120503191,0.02096631,87203.0,87202.0,0.229352]
[1743120503399,0.02096631,87203.0,87202.0,0.240819]
[1743120503604,0.0043388,87203.0,87202.0,0.240819]
[1743120503805,0.02096631,87203.0,87202.0,0.240819]
[1743120504401,0.02096631,87203.0,87202.0,0.229352]
[1743120511168,0.02096631,87203.0,87202.0,0.43117664]
[1743120511662,0.0043388,87203.0,87202.0,0.43117664]
[1743120517487,0.0043388,87203.0,87202.0,0.42389964]
[1743120531527,0.0043388,87203.0,87202.0,0.42406904]
[1743120535787,0.0043388,87203.0,87202.0,0.43860989]
[1743120535989,4.5e-07,87209.0,87208.0,0.570802]
[1743120536115,4.5e-07,87209.0,87208.0,0.95406049]
[1743120538330,0.00100045,87209.0,87208.0,0.95406049]
[1743120538538,0.00200045,87209.0,87208.0,0.95706049]
[1743120538740,0.00100045,87209.0,87208.0,0.95706049]
[1743120538941,0.00100045,87209.0,87208.0,1.05706049]
[1743120539142,0.00200045,87209.0,87208.0,1.06206049]
[1743120539506,0.00300045,87209.0,87208.0,1.06406049]
[1743120540983,0.00300045,87209.0,87208.0,1.05914049]
[1743120541387,0.00300045,87209.0,87208.0,0.93070049]
[1743120541686,0.00300045,87209.0,87208.0,1.05914049]
[1743120542009,0.00300045,87209.0,87208.0,0.95914049]
[1743120543831,0.00300045,87209.0,87208.0,0.93414049]
[1743120544179,0.00333925,87209.0,87208.0,0.93414049]
[1743120547545,0.00333925,87209.0,87208.0,0.95914049]
[1743120547969,0.00333925,87209.0,87208.0,0.93414049]
[1743120548179,0.00333925,87209.0,87208.0,0.95914049]
[1743120548933,0.00333925,87209.0,87208.0,0.93414049]
[1743120550281,0.00333925,87209.0,87208.0,0.95914049]
[1743120551224,0.00333925,87209.0,87208.0,0.95886049]
[1743120552726,0.00333925,87209.0,87208.0,0.93386049]
[1743120554202,0.00333925,87209.0,87208.0,0.80570049]
[1743120554397,0.00333925,87209.0,87208.0,0.50764049]
[1743120556698,0.00333925,87209.0,87208.0,0.50780989]
[1743120556903,0.00333925,87209.0,87208.0,0.25242704]
[1743120557158,0.00333925,87209.0,87208.0,0.12442704]
[1743120557365,0.00333925,87209.0,87208.0,0.36522904]
[1743120557557,0.02014498,87209.0,87208.0,0.36522904]
[1743120557693,0.00333925,87209.0,87208.0,0.36522904]
[1743120557901,0.01812696,87209.0,87208.0,0.35722904]
[1743120558101,0.00033925,87209.0,87208.0,0.35522904]
[1743120558277,0.01710835,87209.0,87208.0,0.35822904]
[1743120558486,0.00033925,87209.0,87208.0,0.35822904]
[1743120558689,0.01710835,87209.0,87208.0,0.35822904]
[1743120558895,0.00033925,87209.0,87208.0,0.35822904]
[1743120559142,0.01710835,87209.0,87208.0,0.35822904]
[1743120559343,0.00033925,87209.0,87208.0,0.35822904]
[1743120559541,0.01710835,87209.0,87208.0,0.35822904]
[1743120559743,0.00033925,87209.0,87208.0,0.35822904]
[1743120559939,0.01710835,87209.0,87208.0,0.35822904]
[1743120560151,0.00033925,87209.0,87208.0,0.35822904]
[1743120560351,0.01710835,87209.0,87208.0,0.35822904]
[1743120560528,0.00033925,87209.0,87208.0,0.35822904]
[1743120560726,0.01710835,87209.0,87208.0,0.35822904]
[1743120561797,0.01710835,87209.0,87208.0,0.34676304]
[1743120561929,0.01710835,87209.0,87208.0,0.35822904]
[1743120566590,0.01710835,87209.0,87208.0,0.34676304]
[1743120566793,0.01710835,87209.0,87208.0,0.35822904]
[1743120569276,0.00033925,87209.0,87208.0,0.35822904]
[1743120569880,0.22967325,87209.0,87208.0,0.0031694]
[1743120570062,0.304269,87209.0,87208.0,0.0031694]
[1743120570273,0.383769,87209.0,87208.0,0.0031694]
[1743120571196,0.683769,87209.0,87208.0,0.0001694]
[1743120571394,0.91228428,87209.0,87208.0,0.0011694]
[1743120571614,0.540816,87203.0,87202.0,8e-07]
[1743120571819,0.91161364,87203.0,87202.0,8e-07]
[1743120572098,0.92823943,87203.0,87202.0,8e-07]
[1743120572528,0.540846,87192.0,87191.0,0.00017]
[1743120572659,0.665246,87192.0,87191.0,0.00017]
[1743120572857,0.68188345,87192.0,87191.0,0.00017]
[1743120574205,0.68388345,87192.0,87191.0,0.00017]
[1743120575199,0.68488345,87192.0,87191.0,0.00017]
[1743120576284,0.68288345,87192.0,87191.0,0.00017]
[1743120576730,0.68588345,87192.0,87191.0,0.00017]
[1743120577519,0.68488345,87192.0,87191.0,0.00017]
[1743120577923,0.68688345,87192.0,87191.0,0.00017]
[1743120579419,0.70945863,87192.0,87191.0,0.00017]
[1743120581076,0.83729863,87192.0,87191.0,0.00017]
[1743120583195,0.95155627,87192.0,87191.0,0.00017]
[1743120583398,1.06581391,87192.0,87191.0,0.00017]
[1743120583818,0.95155627,87192.0,87191.0,0.00017]
[1743120584152,0.94855627,87192.0,87191.0,0.00017]
[1743120584342,0.669497,87174.0,87173.0,0.00023183]
[1743120584957,0.68599224,87174.0,87173.0,0.00023183]
[1743120585242,0.55739224,87174.0,87173.0,0.00023183]
[1743120585624,0.55839224,87174.0,87173.0,0.00067754]
[1743120586754,0.56039224,87174.0,87173.0,0.00067754]
[1743120588427,0.63549224,87174.0,87173.0,0.00067754]
[1743120588663,0.65866931,87174.0,87173.0,0.00067754]
[1743120589106,0.9165607,87174.0,87173.0,0.00067754]
[1743120589305,0.81822695,87174.0,87173.0,0.00067754]
[1743120590356,0.81622695,87174.0,87173.0,0.00067754]
[1743120591303,0.81622695,87174.0,87173.0,0.00084704]
[1743120591524,0.82122695,87174.0,87173.0,0.00084704]
[1743120591947,0.82022695,87174.0,87173.0,0.00084704]
[1743120592363,0.82422695,87174.0,87173.0,0.00084704]
[1743120593579,0.70996931,87174.0,87173.0,0.00084704]
[1743120593779,1.12766931,87174.0,87173.0,0.00084704]
[1743120594301,1.25554931,87174.0,87173.0,0.00084704]
[1743120595998,1.25550931,87174.0,87173.0,0.00084704]
[1743120596975,1.27938217,87174.0,87173.0,0.00084704]
[1743120597780,1.25550931,87174.0,87173.0,0.00084704]
[1743120598301,1.36976695,87174.0,87173.0,4e-08]
[1743120603256,1.18100931,87174.0,87173.0,4e-08]
[1743120604782,1.18134831,87174.0,87173.0,4e-08]
[1743120607223,1.29560595,87174.0,87173.0,4e-08]
[1743120609097,1.40986359,87174.0,87173.0,4e-08]
[1743120609468,1.29560595,87174.0,87173.0,4e-08]
[1743120612649,1.29552595,87174.0,87173.0,4e-08]
[1743120617433,1.32983156,87174.0,87173.0,4e-08]
[1743120631463,1.34271389,87174.0,87173.0,4e-08]
[1743120632121,1.29741389,87174.0,87173.0,4e-08]
[1743120632323,1.05479625,87174.0,87173.0,4e-08]
[1743120632565,1.05479625,87174.0,87173.0,0.07620004]
[1743120632932,1.02049064,87174.0,87173.0,4e-08]
[1743120633731,1.0548637,87174.0,87173.0,4e-08]
[1743120634604,1.1828637,87174.0,87173.0,4e-08]
[1743120634938,1.1829037,87174.0,87173.0,4e-08]
[1743120636258,1.0548637,87174.0,87173.0,4e-08]
[1743120636465,1.1829837,87174.0,87173.0,4e-08]
[1743120636664,1.1829837,87174.0,87173.0,0.08240004]
[1743120637064,1.0548637,87174.0,87173.0,0.08240004]
[1743120638123,1.02049064,87174.0,87173.0,0.08240004]
[1743120638506,1.02049064,87174.0,87173.0,0.12960004]
[1743120642404,0.77959364,87174.0,87173.0,0.12960004]
[1743120642599,1.00901964,87174.0,87173.0,0.12960004]
[1743120643275,0.77959364,87174.0,87173.0,0.12960004]
[1743120643710,1.00901964,87174.0,87173.0,0.12960004]
[1743120644657,0.77959364,87174.0,87173.0,0.12960004]
[1743120644955,1.02049064,87174.0,87173.0,0.12960004]
[1743120645266,1.00901964,87174.0,87173.0,0.12960004]
[1743120645462,0.77959364,87174.0,87173.0,0.12960004]
[1743120645607,1.00901964,87174.0,87173.0,0.12960004]
[1743120646007,1.00401964,87174.0,87173.0,0.12960004]
[1743120646254,1.00801964,87174.0,87173.0,0.12960004]
[1743120646603,1.01949064,87174.0,87173.0,4e-08]
[1743120646985,1.01549064,87174.0,87173.0,4e-08]
[1743120647220,1.01849064,87174.0,87173.0,4e-08]
[1743120651996,1.00701964,87174.0,87173.0,0.07620004]
[1743120652177,0.33671657,87174.0,87173.0,0.30562804]
[1743120652311,0.33671657,87174.0,87173.0,0.35412804]
[1743120652721,0.33671657,87174.0,87173.0,0.12470004]
[1743120652957,0.56614257,87174.0,87173.0,0.12470004]
[1743120653209,0.57761357,87174.0,87173.0,0.12470004]
[1743120653329,0.57061357,87174.0,87173.0,0.12470004]
[1743120653539,0.02971657,87174.0,87173.0,0.12470004]
[1743120653781,0.03271657,87174.0,87173.0,0.12470004]
[1743120654000,0.26214257,87174.0,87173.0,0.12470004]
[1743120655500,0.03271657,87174.0,87173.0,0.12470004]
[1743120655736,0.26214257,87174.0,87173.0,0.12470004]
[1743120657086,0.27361357,87174.0,87173.0,0.12470004]
[1743120666022,0.26214257,87174.0,87173.0,0.12470004]
[1743120666664,0.03271657,87174.0,87173.0,0.46838568]
[1743120666912,0.03271657,87174.0,87173.0,0.47985668]
[1743120667413,0.003339,87174.0,87173.0,0.47985668]
[1743120667674,0.002339,87174.0,87173.0,0.47985668]
[1743120669169,0.000339,87174.0,87173.0,0.47985668]
[1743120669364,0.001339,87174.0,87173.0,0.47985668]
[1743120670053,0.000339,87174.0,87173.0,0.47985668]
[1743120671875,0.000339,87174.0,87173.0,0.23895768]
[1743120672079,0.000339,87174.0,87173.0,0.46838568]
[1743120672270,0.02982143,87174.0,87173.0,0.46838568]
[1743120672486,0.000339,87174.0,87173.0,0.46838568]
[1743120672650,0.000339,87174.0,87173.0,0.23895768]
[1743120672997,0.000339,87174.0,87173.0,0.41988568]
[1743120673365,0.02981596,87174.0,87173.0,0.41988568]
[1743120675789,0.02981596,87174.0,87173.0,0.19045768]
[1743120676215,0.02981596,87174.0,87173.0,0.41988568]
[1743120677544,0.02981596,87174.0,87173.0,0.34368568]
[1743120678557,0.04128696,87174.0,87173.0,0.11425768]
[1743120678761,0.27071296,87174.0,87173.0,0.11425768]
[1743120678967,0.02981596,87174.0,87173.0,0.11425768]
[1743120679327,0.02981596,87174.0,87173.0,0.34368568]
[1743120680170,0.25924196,87174.0,87173.0,0.11425768]
[1743120681235,0.02981596,87174.0,87173.0,0.09425768]
[1743120682904,0.02981596,87174.0,87173.0,0.32368568]
[1743120684020,0.02981596,87174.0,87173.0,0.40238568]
[1743120684222,0.02981596,87174.0,87173.0,0.41385668]
[1743120684429,0.000339,87174.0,87173.0,0.41385668]
[1743120685248,0.000339,87174.0,87173.0,0.42526648]
[1743120686060,0.000339,87174.0,87173.0,0.41385668]
[1743120687976,0.000339,87174.0,87173.0,0.41402608]
[1743120688751,0.000339,87174.0,87173.0,0.46322608]
[1743120696498,0.000339,87174.0,87173.0,0.45175508]
[1743120697136,0.02983002,87174.0,87173.0,0.45175508]
[1743120697263,0.000339,87174.0,87173.0,0.45175508]
[1743120700162,0.000339,87174.0,87173.0,0.32385508]
[1743120700382,0.02983002,87174.0,87173.0,0.32385508]
[1743120700808,0.02983002,87174.0,87173.0,0.33532608]
[1743120701014,0.02983002,87174.0,87173.0,0.41192608]
[1743120701217,0.000339,87174.0,87173.0,0.41192608]
[1743120714747,0.000339,87174.0,87173.0,0.32385508]
[1743120715151,0.000339,87174.0,87173.0,0.33532608]
[1743120715718,0.000339,87174.0,87173.0,0.33632608]
[1743120720560,0.000339,87174.0,87173.0,0.32485508]
[1743120721383,0.241236,87174.0,87173.0,0.09542708]
[1743120721586,0.241236,87174.0,87173.0,0.0011694]
[1743120721795,0.27073004,87174.0,87173.0,0.0011694]
[1743120722219,0.34633004,87174.0,87173.0,0.0011694]
[1743120722382,0.33485904,87174.0,87173.0,0.0011694]
[1743120722615,0.10543304,87174.0,87173.0,0.2305974]
[1743120722961,0.10543304,87174.0,87173.0,0.0011694]
[1743120723161,0.02983304,87174.0,87173.0,0.2305974]
[1743120723603,0.02983304,87174.0,87173.0,0.2295974]
[1743120723786,0.02983304,87174.0,87173.0,0.2305974]
[1743120724182,0.02983304,87174.0,87173.0,0.35632604]
[1743120724344,0.02983304,87174.0,87173.0,0.35732604]
[1743120724554,0.000339,87174.0,87173.0,0.34585504]
[1743120724969,0.02983304,87174.0,87173.0,0.34585504]
[1743120725166,0.000339,87174.0,87173.0,0.34585504]
[1743120725466,0.02983304,87174.0,87173.0,0.34585504]
[1743120725774,0.000339,87174.0,87173.0,0.34585504]
[1743120725945,0.02981849,87174.0,87173.0,0.34585504]
[1743120726149,0.000339,87174.0,87173.0,0.34585504]
[1743120726356,0.02981849,87174.0,87173.0,0.34585504]
[1743120726557,0.000339,87174.0,87173.0,0.34585504]
[1743120726758,0.02981849,87174.0,87173.0,0.34585504]
[1743120726963,0.000339,87174.0,87173.0,0.34585504]
[1743120727162,0.02981849,87174.0,87173.0,0.34585504]
[1743120729691,0.04128949,87174.0,87173.0,0.0021694]
[1743120729882,0.72747944,87174.0,87173.0,0.0021694]
[1743120730102,0.77801549,87174.0,87173.0,0.0021694]
[1743120730480,0.82631549,87174.0,87173.0,0.0021694]
[1743120730851,0.82631549,87174.0,87173.0,0.0011694]
[1743120731060,0.82731549,87174.0,87173.0,0.0011694]
[1743120731387,0.82731549,87174.0,87173.0,0.0001694]
[1743120731968,0.82931549,87174.0,87173.0,0.0001694]
[1743120734474,0.82959549,87174.0,87173.0,0.0001694]
[1743120736235,0.70191549,87174.0,87173.0,0.0001694]
[1743120736406,0.82963549,87174.0,87173.0,0.0001694]
[1743120737416,0.70191549,87174.0,87173.0,0.0001694]
[1743120737621,0.82959549,87174.0,87173.0,0.0001694]
[1743120744097,0.86225978,87174.0,87173.0,0.0001694]
[1743120744441,0.97651742,87174.0,87173.0,4e-07]
[1743120744675,2.03254942,87174.0,87173.0,4e-07]
[1743120744829,0.97651742,87174.0,87173.0,4e-07]
[1743120745057,0.94385313,87174.0,87173.0,4e-07]
[1743120745291,0.94085313,87174.0,87173.0,4e-07]
[1743120745765,0.94485313,87174.0,87173.0,4e-07]
[1743120746352,1.36255313,87174.0,87173.0,4e-07]
[1743120746757,1.36655313,87174.0,87173.0,4e-07]
[1743120747158,1.36255313,87174.0,87173.0,4e-07]
[1743120747401,1.36755313,87174.0,87173.0,4e-07]
[1743120747607,1.48181077,87174.0,87173.0,4e-07]
[1743120749706,1.36755313,87174.0,87173.0,4e-07]
[1743120759262,1.40180017,87174.0,87173.0,4e-07]
[1743120759657,1.36755313,87174.0,87173.0,4e-07]
[1743120759872,1.40180011,87174.0,87173.0,4e-07]
[1743120767853,1.41634096,87174.0,87173.0,4e-07]
[1743120768031,1.5305986,87174.0,87173.0,4e-07]
[1743120769020,1.41634096,87174.0,87173.0,4e-07]
[1743120773134,0.54091,87169.0,87168.0,9e-07]
[1743120773362,0.68941462,87169.0,87168.0,0.0001337]
[1743120773473,0.71874482,87169.0,87168.0,0.0001337]
[1743120774301,1.14044482,87169.0,87168.0,7e-07]
[1743120775383,0.540921,87165.0,87164.0,2e-07]
[1743120775569,0.65517864,87165.0,87164.0,2e-07]
[1743120775772,0.84635855,87165.0,87164.0,2e-07]
[1743120777036,0.8658994,87165.0,87164.0,2e-07]
[1743120777263,1.4391994,87165.0,87164.0,2e-07]
[1743120777779,1.45199619,87165.0,87164.0,2e-07]
[1743120777990,1.46998646,87165.0,87164.0,2e-07]
[1743120778281,1.44498646,87165.0,87164.0,2e-07]
[1743120778489,1.44098646,87165.0,87164.0,2e-07]
[1743120778905,1.42299619,87165.0,87164.0,2e-07]
[1743120779106,1.42799619,87165.0,87164.0,2e-07]
[1743120780476,1.44408426,87165.0,87164.0,2e-07]
[1743120781116,1.42799619,87165.0,87164.0,2e-07]
[1743120783122,1.45095814,87165.0,87164.0,2e-07]
[1743120788499,1.30565729,87165.0,87164.0,2e-07]
[1743120790997,0.540951,87154.0,87153.0,0.0574002]
[1743120791320,0.57019798,87154.0,87153.0,0.05744464]
[1743120792102,0.57019798,87154.0,87153.0,0.10674464]
[1743120792304,0.57519798,87154.0,87153.0,0.10674464]
[1743120792490,0.57919798,87154.0,87153.0,0.10674464]
[1743120792728,0.57919798,87154.0,87153.0,0.05744464]
[1743120802513,0.57919798,87154.0,87153.0,4.444e-05]
[1743120802906,0.57919798,87154.0,87153.0,0.00021394]
[1743120803116,0.57953698,87154.0,87153.0,0.00021394]
[1743120811443,0.6138326,87154.0,87153.0,0.00021394]
[1743120812871,0.57953698,87154.0,87153.0,0.00021394]
[1743120817334,0.6138411,87154.0,87153.0,0.00021394]
[1743120817600,0.57953698,87154.0,87153.0,0.00021394]
[1743120817839,0.6138411,87154.0,87153.0,0.00021394]
[1743120818271,0.57953698,87154.0,87153.0,0.00021394]
[1743120818480,0.6138437,87154.0,87153.0,0.00021394]
[1743120829490,0.7408037,87154.0,87153.0,0.00021394]
[1743120830264,0.70649698,87154.0,87153.0,0.00021394]
[1743120830602,0.74082004,87154.0,87153.0,0.00021394]
[1743120831330,0.70649698,87154.0,87153.0,0.00021394]
[1743120834912,0.57953698,87154.0,87153.0,0.00021394]
[1743120835092,0.85510492,87154.0,87153.0,0.00021394]
[1743120835865,0.85510392,87154.0,87153.0,0.00021394]
[1743120836191,0.74081992,87154.0,87153.0,0.00021394]
[1743120841264,0.61385992,87154.0,87153.0,0.00021394]
[1743120841463,0.74081992,87154.0,87153.0,0.00021394]
[1743120841713,0.540966,87149.0,87148.0,0.078]
[1743120841885,0.57024777,87149.0,87148.0,0.078]
[1743120843937,0.57324777,87149.0,87148.0,0.078]
[1743120844611,0.57724777,87149.0,87148.0,0.078]
[1743120845279,0.70420777,87149.0,87148.0,0.078]
[1743120847166,0.72686094,87149.0,87148.0,0.078]
[1743120848792,0.59990094,87149.0,87148.0,0.078]
[1743120848967,0.59990094,87149.0,87148.0,0.1264]
[1743120852194,0.57724777,87149.0,87148.0,0.1265694]
[1743120852932,0.33628177,87149.0,87148.0,0.1265694]
[1743120853166,0.56577377,87149.0,87148.0,0.1265694]
[1743120853351,0.56177377,87149.0,87148.0,0.1265694]
[1743120853693,0.56477377,87149.0,87148.0,0.1265694]
[1743120853844,0.56177377,87149.0,87148.0,0.1265694]
[1743120854045,0.56377377,87149.0,87148.0,0.1265694]
[1743120854252,0.26377377,87149.0,87148.0,0.1265694]
[1743120855593,0.27524777,87149.0,87148.0,0.1265694]
[1743120857956,0.27024777,87149.0,87148.0,0.1265694]
[1743120858160,0.27224777,87149.0,87148.0,0.1265694]
[1743120858866,0.27424777,87149.0,87148.0,0.1265694]
[1743120859067,0.03328177,87149.0,87148.0,0.3560634]
[1743120860108,0.03328177,87149.0,87148.0,0.47032104]
[1743120860464,0.00404449,87149.0,87148.0,0.48179504]
[1743120861100,4.449e-05,87149.0,87148.0,0.48179504]
[1743120861306,0.00204449,87149.0,87148.0,0.48179504]
[1743120861526,0.00304449,87149.0,87148.0,0.48179504]
[1743120862608,0.00104449,87149.0,87148.0,0.48179504]
[1743120863389,0.00104449,87149.0,87148.0,0.49349872]